fUSD/lending_fUSD_20251001
["ID","MTS","AMOUNT","RATE_DAILY","PERIOD"]
[388647477,1759296679819,-754.55,0.00024657,2]
[388647478,1759296679828,-500.0,0.00024657,2]
[388647479,1759296679840,-754.55,0.00024657,2]
[388647480,1759296679850,-3734.57,0.00024657,2]
[388647481,1759296679860,-500.0,0.00024657,2]
[388647482,1759296679869,-754.55,0.00024657,2]
[388647483,1759296679879,-500.0,0.00024657,2]
[388647484,1759296679889,-754.55,0.00024657,2]
[388647485,1759296679898,-754.55,0.00024657,2]
[388647486,1759296679907,-754.55,0.00024657,2]
[388647487,1759296679917,-754.55,0.00024657,2]
[388647488,1759296679926,-754.55,0.00024657,2]
[388647489,1759296679936,-754.55,0.00024657,2]
[388647490,1759296679945,-754.55,0.00024657,2]
[388647491,1759296679955,-754.55,0.00024657,2]
[388647492,1759296679964,-1467.59,0.00024657,2]
[388647493,1759296679973,-754.55,0.00024657,2]
[388647494,1759296679983,-2919.65,0.00024657,2]
[388647495,1759296679992,-344.92034361,0.00024657,2]
[388647496,1759296680001,-754.55,0.00024657,2]
[388647497,1759296680011,-754.55,0.00024657,2]
[388647498,1759296680020,-5180.27,0.00024657,2]
[388647499,1759296680030,-754.55,0.00024657,2]
[388647500,1759296680039,-754.55,0.00024657,2]
[388647501,1759296680049,-2353.18,0.00024657,2]
[388647502,1759296680058,-754.55,0.00024657,2]
[388647503,1759296680069,-754.55,0.00024657,2]
[388647504,1759296680079,-754.55,0.00024657,2]
[388647505,1759296680088,-754.55,0.00024657,2]
[388647506,1759296680097,-754.55,0.00024657,2]
[388647507,1759296680106,-754.55,0.00024657,2]
[388647508,1759296680116,-754.55,0.00024657,2]
[388647509,1759296680125,-754.72344552,0.00024657,2]
[388647510,1759296680134,-2702.69,0.00024657,2]
[388647511,1759296680143,-500.0,0.00024657,2]
[388647512,1759296680152,-975.84,0.00024657,2]
[388647513,1759296680161,-31992.54,0.00024657,2]
[388647514,1759296680171,-2899.78,0.00024657,2]
[388647515,1759296680180,-1131.96,0.00024657,2]
[388647516,1759296680190,-652.88,0.00024657,2]
[388647517,1759296680200,-500.0,0.00024657,2]
[388647518,1759296680214,-9590.02,0.00024657,2]
[388647519,1759296680223,-500.0,0.00024657,2]
[388647520,1759296680232,-500.0,0.00024657,2]
[388647521,1759296680241,-500.0,0.00024657,2]
[388647522,1759296680250,-2188.2,0.00024657,2]
[388647523,1759296680259,-500.0,0.00024657,2]
[388647524,1759296680268,-3436.55,0.00024657,2]
[388647525,1759296680278,-500.0,0.00024657,2]
[388647526,1759296680287,-2149.39,0.00024657,2]
[388647527,1759296680296,-4196.72,0.00024657,2]
[388647528,1759296680305,-599.96,0.00024657,2]
[388647529,1759296680314,-17374.57,0.00024657,2]
[388647530,1759296680324,-784.05,0.00024657,2]
[388647531,1759296680333,-500.0,0.00024657,2]
[388647532,1759296680342,-1015.23,0.00024657,2]
[388647533,1759296680352,-5099.17,0.00024657,2]
[388647534,1759296680361,-1977.91,0.00024657,2]
[388647535,1759296680371,-6588.94,0.00024657,2]
[388647536,1759296680382,-500.0,0.00024657,2]
[388647537,1759296680399,-500.0,0.00024657,2]
[388647538,1759296680409,-500.0,0.00024657,2]
[388647539,1759296680419,-500.0,0.00024657,2]
[388647540,1759296680429,-1306.27,0.00024657,2]
[388647541,1759296680439,-3253.99,0.00024657,2]
[388647542,1759296680450,-502.78565952,0.00024657,2]
[388647543,1759296680461,-762.97,0.00024657,2]
[388647544,1759296680471,-5677.34,0.00024657,2]
[388647545,1759296680480,-500.0,0.00024657,2]
[388647546,1759296680490,-630.64,0.00024657,2]
[388647547,1759296680499,-500.0,0.00024657,2]
[388647548,1759296680509,-2240.03,0.00024657,2]
[388647549,1759296680518,-500.0,0.00024657,2]
[388647550,1759296680528,-500.0,0.00024657,2]
[388647551,1759296680538,-500.0,0.00024657,2]
[388647552,1759296680548,-2608.73,0.00024657,2]
[388647553,1759296680558,-756.47,0.00024657,2]
[388647554,1759296680567,-507.71739034,0.00024657,2]
[388647555,1759296680578,-500.0,0.00024657,2]
[388647556,1759296680588,-938.87,0.00024657,2]
[388647557,1759296680598,-1389.06,0.00024657,2]
[388647558,1759296680614,-500.0,0.00024657,2]
[388647559,1759296680626,-1617.13,0.00024657,2]
[388647560,1759296680637,-1563.44,0.00024657,2]
[388647561,1759296680648,-2908.58,0.00024657,2]
[388647562,1759296680658,-502.52,0.00024657,2]
[388647563,1759296680673,-500.0,0.00024657,2]
[388647564,1759296681120,-237.8166204,0.00024657,2]
[388647565,1759296681130,-500.0,0.00024657,2]
[388647566,1759296681139,-500.0,0.00024657,2]
[388647567,1759296681148,-500.0,0.00024657,2]
[388647568,1759296681157,-3323.73,0.00024657,2]
[388647569,1759296681167,-527.52,0.00024657,2]
[388647570,1759296681176,-2070.79,0.00024657,2]
[388647571,1759296681186,-500.0,0.00024657,2]
[388647572,1759296681196,-695.74,0.00024657,2]
[388647573,1759296681205,-4082.19,0.00024657,2]
[388647574,1759296681214,-546.15,0.00024657,2]
[388647575,1759296681224,-500.0,0.00024657,2]
[388647576,1759296681233,-500.0,0.00024657,2]
[388647577,1759296681243,-546.15,0.00024657,2]
[388647578,1759296681252,-3167.69,0.00024657,2]
[388647579,1759296681261,-4465.66,0.00024657,2]
[388647580,1759296681271,-546.15,0.00024657,2]
[388647581,1759296681280,-546.15,0.00024657,2]
[388647582,1759296681289,-500.0,0.00024657,2]
[388647583,1759296681299,-546.15,0.00024657,2]
[388647584,1759296681309,-546.15,0.00024657,2]
[388647585,1759296681318,-500.0,0.00024657,2]
[388647586,1759296681327,-546.15,0.00024657,2]
[388647587,1759296681336,-2271.19,0.00024657,2]
[388647588,1759296681346,-500.0,0.00024657,2]
[388647589,1759296681355,-546.15,0.00024657,2]
[388647590,1759296681364,-500.0,0.00024657,2]
[388647591,1759296681374,-546.15,0.00024657,2]
[388647592,1759296681390,-500.0,0.00024657,2]
[388647593,1759296681404,-546.15,0.00024657,2]
[388647594,1759296681415,-500.0,0.00024657,2]
[388647595,1759296681425,-2151.05,0.00024657,2]
[388647596,1759296681435,-546.15,0.00024657,2]
[388647597,1759296681446,-500.0,0.00024657,2]
[388647598,1759296681456,-546.15,0.00024657,2]
[388647599,1759296681467,-500.0,0.00024657,2]
[388647600,1759296681477,-546.15,0.00024657,2]
[388647601,1759296681486,-500.0,0.00024657,2]
[388647602,1759296681497,-546.15,0.00024657,2]
[388647603,1759296681507,-224.33826957,0.00024657,2]
[388647604,1759296681517,-546.15,0.00024657,2]
[388647605,1759296681527,-9051.4,0.00024657,2]
[388647606,1759296681537,-546.15,0.00024657,2]
[388647607,1759296681547,-500.0,0.00024657,2]
[388647608,1759296681556,-546.15,0.00024657,2]
[388647609,1759296681567,-546.15,0.00024657,2]
[388647610,1759296681577,-546.15,0.00024657,2]
[388647611,1759296681587,-500.0,0.00024657,2]
[388647612,1759296681596,-546.15,0.00024657,2]
[388647613,1759296681606,-500.0,0.00024657,2]
[388647614,1759296681615,-546.15,0.00024657,2]
[388647615,1759296681625,-546.15,0.00024657,2]
[388647616,1759296681635,-500.0,0.00024657,2]
[388647617,1759296681644,-546.15,0.00024657,2]
[388647618,1759296681654,-546.15098991,0.00024657,2]
[388647619,1759296681665,-3346.73,0.00024657,2]
[388647620,1759296681677,-824.85,0.00024657,2]
[388647621,1759296681687,-500.60347049,0.00024657,2]
[388647622,1759296681698,-456.6887351,0.00024657,2]
[388647623,1759296681710,-500.0,0.00024657,2]
[388647624,1759296681722,-4518.95,0.00024657,2]
[388647625,1759296681731,-785.3,0.00024657,2]
[388647626,1759296681743,-3887.82,0.00024657,2]
[388647627,1759296681752,-2751.36,0.00024657,2]
[388647628,1759296681762,-500.0,0.00024657,2]
[388647629,1759296681772,-13960.87,0.00024657,2]
[388647630,1759296681782,-810.24,0.00024657,2]
[388647631,1759296681792,-500.0,0.00024657,2]
[388647632,1759296681802,-500.0,0.00024657,2]
[388647633,1759296681815,-500.0,0.00024657,2]
[388647634,1759296681825,-500.0,0.00024657,2]
[388647635,1759296681835,-2971.79,0.00024657,2]
[388647636,1759296681844,-1319.36,0.00024657,2]
[388647637,1759296681854,-3968.76,0.00024657,2]
[388647638,1759296681864,-502.57,0.00024658,2]
[388647639,1759296681874,-1000.0,0.00024658,2]
[388647640,1759296681884,-500.0,0.00024658,2]
[388647641,1759296681895,-500.40249575,0.00024673,2]
[388647642,1759296681905,-500.9601107,0.00024673,2]
[388647643,1759296681916,-500.0,0.00024673,2]
[388647644,1759296681926,-500.74922009,0.00024673,2]
[388647645,1759296681935,-500.0,0.00024673,2]
[388647646,1759296681944,-500.95829268,0.00024673,2]
[388647647,1759296681955,-500.67730375,0.00024673,2]
[388647648,1759296681964,-502.12081789,0.00024673,2]
[388647649,1759296681975,-500.81869515,0.00024673,2]
[388647650,1759296681984,-500.83646874,0.00024673,2]
[388647651,1759296681994,-500.61219276,0.00024673,2]
[388647652,1759296682008,-166.71189663,0.00024673,2]
[388647653,1759296682018,-500.82300331,0.00024673,2]
[388647654,1759296682029,-150.0796497,0.00024673,2]
[388647655,1759296682039,-411.80132182,0.00024695,26]
[388647656,1759296682050,-168.0,0.00024717,2]
[388647657,1759296682061,-150.0,0.00024731,2]
[388647658,1759296682071,-1253.10825617,0.00024731,2]
[388647659,1759296682082,-150.0,0.00024731,2]
[388647660,1759296682093,-977.99460115,0.00024731,2]
[388647661,1759296682103,-156.77075823,0.00024731,2]
[388647662,1759296682113,-300.0,0.00024734,2]
[388647663,1759296682123,-1924.62356906,0.00024756,2]
[388647664,1759296682134,-300.0,0.00024799,10]
[388647665,1759296682144,-448862.3741812,0.000248,2]
[388647666,1759296682927,-156543.5060128,0.000248,2]
[388647667,1759296682938,-178.05,0.000248,2]
[388647668,1759296682947,-297.0,0.00024822,2]
[388647669,1759296682957,-1637.40648366,0.00024831,2]
[388647670,1759296682968,-500.0,0.00024833,2]
[388647671,1759296682977,-163.54,0.00024852,2]
[388647672,1759296682987,-171.2420873,0.00024866,7]
[388647673,1759296682996,-4563.0,0.00024883,2]
[388647674,1759296683005,-150.0,0.00024899,2]
[388647675,1759296683015,-300.0,0.00024899,10]
[388647676,1759296683024,-214.0,0.000249,2]
[388647677,1759296683033,-150.0,0.000249,2]
[388647678,1759296683044,-305.02559589,0.0002493,10]
[388647679,1759296683053,-500.0,0.00024931,2]
[388647680,1759296683062,-1642.76474728,0.00024931,2]
[388647681,1759296684384,223.38,8.768e-05,2]
[388647682,1759296684419,-204.04633,0.0001878,2]
[388647683,1759296684428,-296.42068949,0.0001878,2]
[388647684,1759296684439,-1201.04658851,0.0001878,2]
[388647685,1759296684449,-272.063091,0.0001878,2]
[388647686,1759296684458,-400.61058,0.0001878,2]
[388647687,1759296684467,-409.515723,0.0001878,2]
[388647688,1759296684476,-204.04633,0.0001878,2]
[388647689,1759296684486,-1497.467278,0.0001878,2]
[388647690,1759296684495,-272.063091,0.0001878,2]
[388647691,1759296684505,-409.515723,0.00018788,2]
[388647692,1759296684515,-204.04633,0.00018788,2]
[388647693,1759296684524,-1497.467278,0.00018788,2]
[388647694,1759296684534,-272.063091,0.00018788,2]
[388647695,1759296684543,-400.61058,0.00018788,2]
[388647696,1759296684553,-409.515723,0.00018788,2]
[388647697,1759296684562,-204.04633,0.00018788,2]
[388647698,1759296684572,-409.515723,0.00018873,2]
[388647699,1759296684582,-204.04633,0.00018873,2]
[388647700,1759296684591,-1497.467278,0.00018873,2]
[388647701,1759296684600,-400.61058,0.00018873,2]
[388647702,1759296684612,-272.063091,0.00018873,2]
[388647703,1759296684621,-409.515723,0.00018873,2]
[388647704,1759296684630,-204.04633,0.00018873,2]
[388647705,1759296684640,-409.515723,0.00018888,2]
[388647706,1759296684650,-204.04633,0.00018888,2]
[388647707,1759296684659,-1497.467278,0.00018888,2]
[388647708,1759296684672,-400.61058,0.00018888,2]
[388647709,1759296684682,-272.063091,0.00018888,2]
[388647710,1759296684692,-409.515723,0.00018888,2]
[388647711,1759296684702,-204.04633,0.00018888,2]
[388647712,1759296684711,-409.515723,0.000189,2]
[388647713,1759296684721,-204.04633,0.000189,2]
[388647714,1759296684730,-1497.467278,0.000189,2]
[388647715,1759296684741,-400.61058,0.000189,2]
[388647716,1759296684751,-409.515723,0.000189,2]
[388647717,1759296684760,-272.063091,0.00018999,2]
[388647718,1759296684771,-4114.0,0.00022044,2]
[388647719,1759296684781,-1056.48178579,0.00024657,2]
[388647720,1759296684794,-184.63821421,0.00024657,2]
[388647721,1759296684804,-633.71319248,0.00024657,2]
[388647722,1759296684828,-204.04633,0.000189,2]
[388647723,1759296684838,-2089.35663615,0.00024657,2]
[388647724,1759296684866,-400.61058,0.0001878,2]
[388647725,1759296684876,-409.515723,0.0001878,2]
[388647726,1759296684886,-1497.467278,0.00018788,2]
[388647727,1759296684896,-2648.77871572,0.00024657,2]
[388647728,1759296684907,-2445.09886678,0.00024657,2]
[388647729,1759296684919,-532.03,0.00024657,2]
[388647730,1759296684930,-591.64770769,0.00024657,2]
[388647731,1759296684941,-559.49189126,0.00024657,2]
[388647732,1759296684962,-1767.7686502,0.00024657,2]
[388647733,1759296684972,-358.80676578,0.00024657,2]
[388647734,1759296685037,-1031.64859331,0.00024657,2]
[388647735,1759296685049,-18186.04898063,0.00024657,2]
[388647736,1759296685059,-2625.32,0.00024657,2]
[388647737,1759296685069,-500.0,0.00024657,2]
[388647738,1759296685078,-1732.59804609,0.00024931,2]
[388647739,1759296685150,-272.063091,0.00018788,2]
[388647740,1759296685159,-507.30720663,0.00024931,2]
[388647741,1759296685168,-1499.373196,0.00024931,2]
[388647742,1759296685177,-2998.746394,0.00024931,2]
[388647743,1759296685186,-309.75945,0.00024931,2]
[388647744,1759296685196,-2544.726331,0.00024931,2]
[388647745,1759296685205,-2529.917035,0.00024931,2]
[388647746,1759296685215,-2035.781065,0.00024931,2]
[388647747,1759296685231,-500.0,0.00024931,2]
[388647748,1759296685240,-1941.31,0.00024931,2]
[388647749,1759296685250,-206.92,0.00024931,2]
[388647750,1759296685259,-500.0,0.00024931,2]
[388647751,1759296685268,-500.0,0.00024931,2]
[388647752,1759296685277,-500.0,0.00024931,2]
[388647753,1759296685287,-500.0,0.00024931,2]
[388647754,1759296685296,-500.0,0.00024931,2]
[388647755,1759296685306,-500.0,0.00024931,2]
[388647756,1759296685315,-391.50068882,0.00024931,2]
[388647757,1759296685324,-500.0,0.00024931,2]
[388647758,1759296685333,-500.0,0.00024931,2]
[388647759,1759296685342,-500.0,0.00024931,2]
[388647760,1759296685351,-832.7,0.00024931,2]
[388647761,1759296685360,-500.0,0.00024931,2]
[388647762,1759296685370,-500.0,0.00024931,2]
[388647763,1759296685379,-500.0,0.00024931,2]
[388647764,1759296685388,-500.0,0.00024931,2]
[388647765,1759296685397,-500.0,0.00024931,2]
[388647766,1759296685406,-500.0,0.00024931,2]
[388647767,1759296685415,-500.0,0.00024931,2]
[388647768,1759296685425,-500.0,0.00024931,2]
[388647769,1759296685434,-1950.42,0.00024931,2]
[388647770,1759296685442,-500.0,0.00024931,2]
[388647771,1759296685451,-1015.01,0.00024931,2]
[388647772,1759296685460,-972.72,0.00024931,2]
[388647773,1759296685470,-833.01,0.00024931,2]
[388647774,1759296685479,-500.0,0.00024931,2]
[388647775,1759296685488,-500.32312539,0.00024931,2]
[388647776,1759296685498,-500.0,0.00024931,2]
[388647777,1759296685507,-500.0,0.00024931,2]
[388647778,1759296685516,-500.0,0.00024931,2]
[388647779,1759296685525,-303.70720368,0.00024931,2]
[388647780,1759296685546,-204.04633,0.0001878,2]
[388647781,1759296685555,-165.33854295,0.00024931,2]
[388647782,1759296685565,-691.01,0.00024931,2]
[388647783,1759296685574,-500.0,0.00024931,2]
[388647784,1759296685583,-500.0,0.00024931,2]
[388647785,1759296685593,-292.41295115,0.00024931,2]
[388647786,1759296685602,-500.0,0.00024931,2]
[388647787,1759296685611,-500.0,0.00024931,2]
[388647788,1759296685621,-500.0,0.00024931,2]
[388647789,1759296685630,-500.0,0.00024931,2]
[388647790,1759296685640,-500.0,0.00024931,2]
[388647791,1759296685651,-500.0,0.00024931,2]
[388647792,1759296685660,-500.0,0.00024931,2]
[388647793,1759296685674,-500.0,0.00024931,2]
[388647794,1759296685684,-500.0,0.00024931,2]
[388647795,1759296685694,-500.0,0.00024931,2]
[388647796,1759296685704,-1280.7,0.00024931,2]
[388647797,1759296685714,-500.0,0.00024931,2]
[388647798,1759296685724,-500.0,0.00024931,2]
[388647799,1759296685734,-454.07683942,0.00024931,2]
[388647800,1759296685745,-500.0,0.00024931,2]
[388647801,1759296685755,-500.0,0.00024931,2]
[388647802,1759296685764,-500.0,0.00024931,2]
[388647803,1759296685774,-500.0,0.00024931,2]
[388647804,1759296685783,-500.0,0.00024931,2]
[388647805,1759296685792,-500.0,0.00024931,2]
[388647806,1759296685802,-500.0,0.00024931,2]
[388647807,1759296685811,-500.0,0.00024931,2]
[388647808,1759296685820,-500.0,0.00024931,2]
[388647809,1759296685829,-793.12,0.00024931,2]
[388647810,1759296685839,-533.14,0.00024931,2]
[388647811,1759296685848,-500.0,0.00024931,2]
[388647812,1759296685858,-500.0,0.00024931,2]
[388647813,1759296685867,-500.0,0.00024931,2]
[388647814,1759296685877,-988.41,0.00024931,2]
[388647815,1759296685886,-500.0,0.00024931,2]
[388647816,1759296685896,-963.61,0.00024931,2]
[388647817,1759296685905,-500.0,0.00024931,2]
[388647818,1759296685915,-500.0,0.00024931,2]
[388647819,1759296685925,-500.0,0.00024931,2]
[388647820,1759296685935,-500.0,0.00024931,2]
[388647821,1759296685946,-2382.35,0.00024931,2]
[388647822,1759296685961,-595.2,0.00024931,2]
[388647823,1759296685970,-500.0,0.00024931,2]
[388647824,1759296685980,-500.0,0.00024931,2]
[388647825,1759296685990,-509.31,0.00024931,2]
[388647826,1759296686000,-500.0,0.00024931,2]
[388647827,1759296686010,-660.38,0.00024931,2]
[388647828,1759296686019,-500.0,0.00024931,2]
[388647829,1759296686028,-1927.27,0.00024931,2]
[388647830,1759296686038,-508.86,0.00024931,2]
[388647831,1759296686047,-1827.82,0.00024931,2]
[388647832,1759296686057,-500.0,0.00024931,2]
[388647833,1759296686066,-836.97,0.00024931,2]
[388647834,1759296686075,-695.66,0.00024931,2]
[388647835,1759296686084,-500.0,0.00024931,2]
[388647836,1759296686094,-1372.85,0.00024931,2]
[388647837,1759296686103,-337.25191406,0.00024931,2]
[388647838,1759296686116,-500.0,0.00024931,2]
[388647839,1759296686126,-500.0,0.00024931,2]
[388647840,1759296686134,-1636.67,0.00024931,2]
[388647841,1759296686143,-500.0,0.00024931,2]
[388647842,1759296686152,-500.0,0.00024931,2]
[388647843,1759296686165,-500.0,0.00024931,2]
[388647844,1759296686175,-500.0,0.00024931,2]
[388647845,1759296686185,-1416.02,0.00024931,2]
[388647846,1759296686194,-500.0,0.00024931,2]
[388647847,1759296686203,-500.82437093,0.00024931,2]
[388647848,1759296686212,-500.0,0.00024931,2]
[388647849,1759296686220,-500.0,0.00024931,2]
[388647850,1759296686229,-1611.96,0.00024931,2]
[388647851,1759296686239,-797.04,0.00024931,2]
[388647852,1759296686249,-500.0,0.00024931,2]
[388647853,1759296686258,-500.0,0.00024931,2]
[388647854,1759296686267,-500.0,0.00024931,2]
[388647855,1759296686276,-500.0,0.00024931,2]
[388647856,1759296686285,-356.71973812,0.00024931,2]
[388647857,1759296686295,-1416.84,0.00024931,2]
[388647858,1759296686304,-500.0,0.00024931,2]
[388647859,1759296686313,-500.0,0.00024931,2]
[388647860,1759296686323,-500.0,0.00024931,2]
[388647861,1759296686332,-500.0,0.00024931,2]
[388647862,1759296686342,-806.33,0.00024931,2]
[388647863,1759296686351,-771.28,0.00024931,2]
[388647864,1759296686361,-500.0,0.00024931,2]
[388647865,1759296686370,-729.28,0.00024931,2]
[388647866,1759296686379,-1092.26,0.00024931,2]
[388647867,1759296686388,-500.0,0.00024931,2]
[388647868,1759296686397,-904.86,0.00024931,2]
[388647869,1759296686406,-2315.32,0.00024931,2]
[388647870,1759296686416,-768.88,0.00024931,2]
[388647871,1759296686425,-500.0,0.00024931,2]
[388647872,1759296686434,-500.0,0.00024931,2]
[388647873,1759296686443,-500.0,0.00024931,2]
[388647874,1759296686453,-500.0,0.00024931,2]
[388647875,1759296686462,-648.48,0.00024931,2]
[388647876,1759296686472,-732.87,0.00024931,2]
[388647877,1759296686483,-995.33,0.00024931,2]
[388647878,1759296686493,-500.0,0.00024931,2]
[388647879,1759296686503,-504.39,0.00024931,2]
[388647880,1759296686512,-966.49,0.00024931,2]
[388647881,1759296686523,-500.0,0.00024931,2]
[388647882,1759296686532,-500.0,0.00024931,2]
[388647883,1759296686542,-500.0,0.00024931,2]
[388647884,1759296686551,-1296.8,0.00024931,2]
[388647885,1759296686560,-500.0,0.00024931,2]
[388647886,1759296686570,-500.0,0.00024931,2]
[388647887,1759296686579,-894.14,0.00024931,2]
[388647888,1759296686589,-500.0,0.00024931,2]
[388647889,1759296686598,-954.51,0.00024931,2]
[388647890,1759296686607,-634.53,0.00024931,2]
[388647891,1759296686616,-500.0,0.00024931,2]
[388647892,1759296686626,-500.0,0.00024931,2]
[388647893,1759296686639,-500.0,0.00024931,2]
[388647894,1759296686649,-1008.41,0.00024931,2]
[388647895,1759296686659,-893.53,0.00024931,2]
[388647896,1759296686669,-500.0,0.00024931,2]
[388647897,1759296686682,-500.0,0.00024931,2]
[388647898,1759296686691,-604.43,0.00024931,2]
[388647899,1759296686701,-500.0,0.00024931,2]
[388647900,1759296686713,-512.42,0.00024931,2]
[388647901,1759296686722,-500.0,0.00024931,2]
[388647902,1759296686732,-500.0,0.00024931,2]
[388647903,1759296686742,-500.0,0.00024931,2]
[388647904,1759296686752,-500.0,0.00024931,2]
[388647905,1759296686762,-592.48,0.00024931,2]
[388647906,1759296686772,-584.89983222,0.00024931,2]
[388647907,1759296686781,-500.0,0.00024931,2]
[388647908,1759296686791,-500.0,0.00024931,2]
[388647909,1759296686801,-500.0,0.00024931,2]
[388647910,1759296686810,-500.0,0.00024931,2]
[388647911,1759296686819,-500.0,0.00024931,2]
[388647912,1759296686829,-500.0,0.00024931,2]
[388647913,1759296686839,-500.0,0.00024931,2]
[388647914,1759296686848,-500.0,0.00024931,2]
[388647915,1759296686859,-759.41,0.00024931,2]
[388647916,1759296686868,-500.0,0.00024931,2]
[388647917,1759296686878,-575.67,0.00024931,2]
[388647918,1759296686889,-500.0,0.00024931,2]
[388647919,1759296686900,-300.78135585,0.00024931,2]
[388647920,1759296686910,-500.0,0.00024931,2]
[388647921,1759296686919,-500.0,0.00024931,2]
[388647922,1759296686928,-777.56,0.00024931,2]
[388647923,1759296686938,-500.0,0.00024931,2]
[388647924,1759296686948,-488.18541966,0.00024931,2]
[388647925,1759296686958,-500.0,0.00024931,2]
[388647926,1759296686967,-500.0,0.00024931,2]
[388647927,1759296686977,-500.0,0.00024931,2]
[388647928,1759296686987,-500.0,0.00024931,2]
[388647929,1759296686997,-500.0,0.00024931,2]
[388647930,1759296687009,-500.0,0.00024931,2]
[388647931,1759296687023,-501.57938852,0.00024931,2]
[388647932,1759296687032,-500.0,0.00024931,2]
[388647933,1759296687042,-500.0,0.00024931,2]
[388647934,1759296687056,-500.0,0.00024931,2]
[388647935,1759296687065,-500.0,0.00024931,2]
[388647936,1759296687075,-659.9,0.00024931,2]
[388647937,1759296687088,-666.22,0.00024931,2]
[388647938,1759296687098,-967.5,0.00024931,2]
[388647939,1759296687107,-500.0,0.00024931,2]
[388647940,1759296687116,-500.0,0.00024931,2]
[388647941,1759296687127,-500.0,0.00024931,2]
[388647942,1759296687136,-500.0,0.00024931,2]
[388647943,1759296687146,-500.0,0.00024931,2]
[388647944,1759296687155,-500.0,0.00024931,2]
[388647945,1759296687165,-526.52,0.00024931,2]
[388647946,1759296687175,-500.0,0.00024931,2]
[388647947,1759296687185,-520.64,0.00024931,2]
[388647948,1759296687194,-500.0,0.00024931,2]
[388647949,1759296687204,-500.0,0.00024931,2]
[388647950,1759296687213,-3808.44,0.00024931,2]
[388647951,1759296687224,-500.0,0.00024931,2]
[388647952,1759296687234,-500.0,0.00024931,2]
[388647953,1759296687244,-500.0,0.00024931,2]
[388647954,1759296687253,-500.0,0.00024931,2]
[388647955,1759296687263,-514.79461688,0.00024931,2]
[388647956,1759296687276,-500.0,0.00024931,2]
[388647957,1759296687287,-500.0,0.00024931,2]
[388647958,1759296687296,-500.0,0.00024931,2]
[388647959,1759296687306,-695.02,0.00024931,2]
[388647960,1759296687316,-1282.96,0.00024931,2]
[388647961,1759296687325,-500.0,0.00024931,2]
[388647962,1759296687335,-500.0,0.00024931,2]
[388647963,1759296687345,-755.69,0.00024931,2]
[388647964,1759296687355,-500.0,0.00024931,2]
[388647965,1759296687365,-500.0,0.00024931,2]
[388647966,1759296687375,-915.1,0.00024931,2]
[388647967,1759296687384,-2406.78,0.00024931,2]
[388647968,1759296687394,-500.0,0.00024931,2]
[388647969,1759296687404,-500.0,0.00024931,2]
[388647970,1759296687414,-500.0,0.00024931,2]
[388647971,1759296687424,-2589.25,0.00024931,2]
[388647972,1759296687437,-500.0,0.00024931,2]
[388647973,1759296687447,-500.0,0.00024931,2]
[388647974,1759296687458,-500.0,0.00024931,2]
[388647975,1759296687468,-500.0,0.00024931,2]
[388647976,1759296687479,-573.39,0.00024931,2]